{"text_format":"1","workbook":"xlsx","n_sheets":13,"sheets":["How to complete","IDPS Data return","FASP Data Return","SCT Data return","Overview of data","IDPS Guidance","FASP Guidance","SCT Guidance","Lists","IDPS Output","SCT Output","FASP Output","Contact details"],"not_rendered":{"charts":0,"images":7,"macros":0,"external_links":0,"defined_names":4,"comments":3,"pivot_tables":0},"unopened":[],"bounds":{"document_bytes":16777216,"sheet_cells":100000,"rows_first":2000,"rows_last":500,"rows_between":2000,"halvings":0,"cell_chars":16384,"cell_head_chars":4096},"cells_cut":0,"cells_raw":0,"read":"whole","date_system":"1900"}

{"sheet":"How to complete","index":0,"n_rows":81,"n_cols":7,"rows_kept":81,"cut":false,"hidden":false,"merged":[[9,2,9,11],[19,2,19,10],[70,2,70,10],[20,2,20,10],[15,2,15,11],[17,2,17,10],[31,2,31,11],[38,2,38,10],[77,2,77,10],[68,2,68,10],[80,2,80,10],[23,2,23,11],[27,2,27,10],[46,2,46,10],[57,2,57,10],[58,2,58,10],[35,2,36,10]]}
[]
[]
[]
[]
[]
[]
[]
[]
[]
[null,null,"Contents"]
[]
[null,null,"1. About this template"]
[null,null,"2. How to complete this template"]
[null,null,"3. How to submit the completed form"]
[]
[null,null,"1. About this template"]
[]
[null,null,"This data collection template combines the annual maternity data collections for the 3 antenatal screening programmes : Infectious Diseases in Pregnancy, Sickle Cell and Thalassaemia and Fetal Anomaly screening programmes."]
[]
[null,null,"The data collected here provides the metrics for the screening programmes to evaluate the programme against screening standards:"]
[null,null,"https://www.gov.uk/government/collections/nhs-population-screening-programme-standards"]
[]
[]
[null,null,"3. How to submit the completed form"]
[]
[null,null,"Once completed for all programmes, the template should be emailed to:",null,null,null,"england.screeningdata@nhs.net"]
[]
[null,null,"The completed template should be added as an attachment, and the subject line should include your trust name. If you use the link above then these fields should automatically be filled in for you based on the completed template. Please ensure that you have filled in the trust name on the 'IDPS Data Return' page."]
[]
[null,null,"Completed templates need to be returned directly to the screening programmes to the email address above by the end of June."]
[]
[null,null,"2. How to complete this template"]
[]
[null,null,"There are 2 sheets per programme - one is the data return and the other is the guidance to go with the data return."]
[]
[null,null,"Please complete all of the yellow boxes on each of the data return sheets. If there were no cases that fit into that category, please enter a \"0\" (zero)."]
[]
[null,null,"Quick guidance:"]
[null,null,"Where there is a red triangle in the corner of a cell, some further guidance is available as a quick reminder of what is requested for that data field. Mouse over the cell and this should appear. For example:"]
[]
[]
[]
[]
[]
[]
[null,null,"Detailed guidance:"]
[null,null,"Some of the names of the data fields are links to the relevant parts of the guidance sheet which contain more detailed information for that particular data field. Click on the name of the field and it should take you to the other sheet, and there is a link to take you back to the data return form. For example:"]
[]
[]
[]
[]
[]
[]
[]
[]
[]
[null,null,"Calculated fields"]
[null,null,"Some fields are automatically calculated for you. This should save you time compared to calculating these yourself, and means that we know that figures for all trusts are being calculated in a consistent way."]
[null,null,"Calculated fields are shaded grey, and cannot be edited. Once all of the yellow cells are completed, the calculated figures will appear in the grey boxes. For example:"]
[]
[]
[]
[]
[]
[]
[]
[]
[]
[null,null,"In this example, the grey box calculates the denominator for IDPS standard 4. The calculation is 'samples received' minus 'exclusions from denominator'."]
[null,null,"Data quality checks:"]
[null,null,"In addition to calculated fields, some 'data quality checks' are included. The purpose of these is to provide a quick check whether the numbers add up to the expected figure. For example:"]
[]
[]
[]
[]
[]
[]
[null,null,"In this example for SCT standard 7 the data quality check performs a simple calculation to check if the number of women who receive their PND result ≤ 5 working days of test (numerator) is less than or equal to the number of women who have PND (denominator) . If it is not, it flags this up. This should prompt you to check the figures for any potential transcription errors."]
[]
[null,null,"Completing sections:"]
[null,null,"Each section has an automatice field called \"section complete?\". This field checks if all the yellow boxes for that standard have a value in them (even if a zero) and returns a \"yes\" or a \"no\". For standards collected elsewhere (for example through KPI data) this will show \"N/A\"."]

{"sheet":"IDPS Data return","index":1,"n_rows":113,"n_cols":18,"rows_kept":113,"cut":false,"hidden":false,"merged":[[50,2,50,6],[50,7,50,8],[50,9,50,10],[50,11,50,12],[51,7,51,8],[51,9,51,10],[51,11,51,12],[59,2,59,7],[60,8,60,9],[64,10,64,11],[64,12,64,13],[77,12,77,13],[77,2,77,11],[74,10,74,11],[70,3,70,9],[62,6,62,7],[62,12,62,13],[74,2,75,9],[47,9,47,10],[47,11,47,12],[44,7,44,12],[45,7,45,12],[48,2,48,6],[44,2,44,6],[45,2,45,6],[46,7,46,8],[46,9,46,10],[46,11,46,12],[47,2,47,6],[48,7,48,8],[48,9,48,10],[48,11,48,12],[112,10,112,11],[112,12,112,13],[112,7,112,9],[106,12,106,13],[80,8,80,9],[95,2,95,14],[110,12,110,13],[85,2,85,17],[82,6,82,7],[93,12,93,13],[110,14,110,17],[109,12,109,13],[109,14,109,17],[108,14,108,17],[82,12,82,13],[82,8,82,9],[92,3,92,11],[92,12,92,13],[92,14,92,17],[105,2,105,11],[106,2,106,11],[88,12,88,13],[105,12,105,13],[104,14,104,17],[105,14,105,17],[106,14,106,17],[100,14,103,17],[69,10,69,11],[68,12,68,13],[68,10,68,11],[69,12,69,13],[73,3,73,9],[73,10,73,11],[73,12,73,13],[73,14,73,17],[79,12,79,13],[32,8,32,11],[31,8,31,11],[59,12,59,13],[56,12,56,13],[58,2,58,7],[58,12,58,13],[57,12,57,13],[59,10,59,11],[57,2,57,7],[58,8,58,9],[54,8,54,9],[47,7,47,8],[30,2,32,6],[37,2,37,17],[54,14,54,17],[56,14,56,17],[55,14,55,17],[58,14,58,17],[59,14,59,17],[58,10,58,11],[57,14,57,17],[39,2,39,14],[54,12,54,13],[54,10,54,11],[111,12,111,13],[111,10,111,11],[55,10,55,11],[55,8,55,9],[55,2,55,7],[55,12,55,13],[109,2,109,11],[60,2,60,7],[110,2,110,11],[71,12,71,13],[97,2,97,17],[79,14,79,17],[80,10,80,11],[79,10,79,11],[91,3,91,11],[86,2,87,11],[90,3,90,11],[90,14,90,17],[88,14,88,17],[70,12,70,13],[80,2,80,7],[72,10,72,11],[68,14,68,17],[62,14,62,17],[17,2,17,14],[27,2,29,6],[27,8,27,11],[28,8,28,11],[29,8,29,11],[21,7,21,11],[20,2,20,6],[21,2,21,6],[26,8,26,11],[24,2,26,6],[24,8,24,11],[25,8,25,11],[20,7,20,11],[35,2,35,14],[30,8,30,11],[71,14,71,17],[60,14,60,17],[91,12,91,13],[80,12,80,13],[89,3,89,11],[69,2,69,9],[79,8,79,9],[82,10,82,11],[88,3,88,11],[71,3,71,9],[70,10,70,11],[76,14,76,17],[89,14,89,17],[89,12,89,13],[72,14,72,17],[81,14,82,17],[74,12,74,13],[91,14,91,17],[72,12,72,13],[87,14,87,17],[80,14,80,17],[90,12,90,13],[49,2,49,6],[49,7,49,8],[49,9,49,10],[49,11,49,12],[77,14,77,17],[69,14,69,17],[62,8,62,9],[72,3,72,9],[76,12,76,13],[64,2,64,7],[70,14,70,17],[62,10,62,11],[71,10,71,11],[66,2,66,14],[60,10,60,11],[56,2,56,7],[57,8,57,9],[56,10,56,11],[56,8,56,9],[60,12,60,13],[51,2,51,6],[59,8,59,9],[57,10,57,11],[64,8,64,9]]}
[]
[]
[]
[]
[]
[]
[]
[]
[]
[null,null,"NHS Infectious Diseases in Screening Programme"]
[null,null,"Annual data collection template"]
[]
[null,null,"1 April 2022 to 31 March 2023"]
[]
[null,null,"Please complete all yellow boxes. If there are no cases that fit into that category, enter a zero."]
[null,null,"Click on underlined headings for more guidance for that data item"]
[null,null,"Mouse over cells with a red arrow in the corner for more detail on that data item"]
[null,null,"Annual data: trust information and sign-off",null,null,null,null,null,null,null,null,null,null,null,null,"Section complete?",null,{"$f":"IF(OR(ISBLANK(H21), ISBLANK(I25), ISBLANK(I26), ISBLANK(I27), ISBLANK(I28), ISBLANK(I29), ISBLANK(I30), ISBLANK(I31), ISBLANK(I32), ISBLANK(I33)), \"No\", \"Yes\")","v":"No"}]
[]
[null,null,"Trust information"]
[null,null,"Name of trust (select from drop-down list)"]
[null,null,"Other"]
[]
[null,null,"Sign-off / completed by"]
[null,null,"Data return completed by:",null,null,null,null,"Name"]
[null,null,null,null,null,null,null,"Job title"]
[null,null,null,null,null,null,null,"Email"]
[null,null,"Sign-off for standards 5 and 7:\n(Head of Midwifery)",null,null,null,null,"Name"]
[null,null,null,null,null,null,null,"Job title"]
[null,null,null,null,null,null,null,"Email"]
[null,null,"Sign-off for standard 4:\n(Laboratory Lead)",null,null,null,null,"Name"]
[null,null,null,null,null,null,null,"Job title"]
[null,null,null,null,null,null,null,"Email"]
[]
[]
[null,null,"Standards 1, 2 & 3: Coverage: HIV, hepatitis B, and syphilis",null,null,null,null,null,null,null,null,null,null,null,null,"Section complete?",null,"N/A"]
[]
[null,null,"Collected via KPI ID1 (HIV coverage), ID3 (hepatitis B coverage), and ID4 (syphilis coverage): no return required"]
[]
[null,null,"Standard 4: Test turnaround time (HIV, hepatitis B, and syphilis) and laboratory information",null,null,null,null,null,null,null,null,null,null,null,null,"Section complete?",null,{"$f":"IF(OR(ISBLANK(H45), ISBLANK(H46), ISBLANK(H48), ISBLANK(J48), ISBLANK(L48), ISBLANK(H52), ISBLANK(I56), ISBLANK(I57), ISBLANK(I59), ISBLANK(I60), ISBLANK(K56), ISBLANK(K57), ISBLANK(K59), ISBLANK(K60), ISBLANK(M56), ISBLANK(M57), ISBLANK(M59), ISBLANK(M60)), \"No\", \"Yes\")","v":"No"}]
[null,null,"Data source: Screening laboratory"]
[null,null,"This section is to be completed by the screening laboratory and submitted to the screening team"]
[]
[null,null,"Laboratory information"]
[null,null,"Name of laboratory where samples are received for screening"]
[null,null,"UKAS customer reference number for accreditation of above laboratory to ISO 15189"]
[null,null,null,null,null,null,null,"HIV",null,"Hepatitis B",null,"Syphilis"]
[null,null,"Assay used for screening at above laboratory"]
[null,null,"Analyser used for screening at above laboratory"]
[null,null,"Assays used for confirmation at above laboratory"]
[null,null,"Analyser used for confirmation (for non-manual assays) at above laboratory"]
[null,null,"Where confirmation is not performed in-house, please state the reference laboratory used for each infection"]
[]
[null,null,"Standard 4"]
[null,null,null,null,null,null,null,null,"HIV",null,"Hepatitis B",null,"Syphilis",null,"Comments"]
[null,null,"Samples received - Total number of antenatal samples received in the laboratory"]
[null,null,"Exclusions from denominator - Samples received not fit for analysis and a repeat sample is requested"]
[null,null,"Denominator - samples received minus exclusions (automatically calculated)",null,null,null,null,null,{"$f":"IF(ISBLANK(I56), \"\", I56-I57)","v":""},null,{"$f":"IF(ISBLANK(K56), \"\", K56-K57)","v":""},null,{"$f":"IF(ISBLANK(M56), \"\", M56-M57)","v":""}]
[null,null,"Timely results (numerator) - Number of results (confirmed screen positive or negative result) reported to maternity services ≤ 8 working days of sample receipt"]
[null,null,"Pending or inconclusive results -  Samples received fit for analysis but results are pending or inconclusive"]
[null,null,"Results not reported ≤ 8 working days - Number of samples for which a result is available (confirmed screen positive or negative result) and it was not reported to maternity services ≤ 8 working days of sample receipt (automatically calculated)",null,null,null,null,null,{"$f":"IF(OR(ISBLANK(I59),I58=\"\"), \"\", I58-I59-I60)","v":""},null,{"$f":"IF(OR(ISBLANK(K59),K58=\"\"), \"\", K58-K59-K60)","v":""},null,{"$f":"IF(OR(ISBLANK(M59),M58=\"\"), \"\", M58-M59-M60)","v":""},null,"Please indicate here why results were reported greater than 8 working days"]
[]
[null,null,null,null,null,null,"Reported performance:\n(auto-completed)",null,{"$f":"IF(I58=\"\", \"No data\", I59/I58)","v":"No data"},null,{"$f":"IF(K58=\"\", \"No data\", K59/K58)","v":"No data"},null,{"$f":"IF(M58=\"\", \"No data\", M59/M58)","v":"No data"}]
[]
[null,null,"Data quality check: Are the timely results (numerator) plus the pending or inconclusive results less than or equal to the denominator?",null,null,null,null,null,{"$f":"IF(SUM(I59:J60)>I58, \"No\", \"Yes\")","v":"Yes"},null,{"$f":"IF(SUM(K59:L60)>K58, \"No\", \"Yes\")","v":"Yes"},null,{"$f":"IF(SUM(M59:N60)>M58, \"No\", \"Yes\")","v":"Yes"}]
[]
[null,null,"Standard 5: Time to intervention: Timely assessment for screen positive and known positive women (HIV, hepatitis B, and syphilis)",null,null,null,null,null,null,null,null,null,null,null,null,"Section complete?",null,{"$f":"IF(OR(ISBLANK(K70), ISBLANK(K71), ISBLANK(K72), ISBLANK(K73), ISBLANK(K74), ISBLANK(M70), ISBLANK(M71), ISBLANK(M72), ISBLANK(M73), ISBLANK(M74), ISBLANK(M78), ISBLANK(M89), ISBLANK(M90), ISBLANK(M91), ISBLANK(M92), ISBLANK(M93), ISBLANK(I81), ISBLANK(K81), ISBLANK(M81)), \"No\", \"Yes\")","v":"No"}]
[null,null,"Data source: Maternity"]
[null,null,null,null,null,null,null,null,null,null,"HIV",null,"Hepatitis B",null,"Comments"]
[null,null,"Referral for assessment indicated (denominator) - Total number of women who are confirmed screen positive/known positive for HIV or hepatitis B"]
[null,null,null,"Newly screened positive women"]
[null,null,null,"Previously known positive women, not re-tested"]
[null,null,null,"Previously known positive women, re-tested in this pregnancy"]
[null,null,null,"Other (please specify in comments)"]
[null,null,"Data quality check: Are all confirmed screen positive women accounted for?",null,null,null,null,null,null,null,{"$f":"IF(SUM(K71:L74)=K70, \"Yes\", \"No\")","v":"Yes"},null,{"$f":"IF(SUM(M71:N74)=M70, \"Yes\", \"No\")","v":"Yes"}]
[]
[null,null,null,null,null,null,null,null,null,null,null,null,"Syphilis",null,"Comments"]
[null,null,"Referral for assessment indicated (denominator) - Total number of women who are confirmed screen positive for syphilis"]
[]
[null,null,null,null,null,null,null,null,"HIV",null,"Hepatitis B",null,"Syphilis",null,"Comments"]
[null,null,"Timely assessment (numerator) - Women who attended for screening assessment appointment ≤ 10 working days"]
[null,null,null,null,null,null,null,null,null,null,null,null,null,null,"Please account for any of the cohort where the standard has not been met."]
[null,null,null,null,null,null,"Reported performance:\n(auto-completed)",null,{"$f":"IF(K70=\"\", \"No data\", I81/K70)","v":"No data"},null,{"$f":"IF(M70=\"\", \"No data\", K81/M70)","v":"No data"},null,{"$f":"IF(M78=\"\", \"No data\", M81/M78)","v":"No data"}]
[]
[]
[null,null,"Syphilis screen positive breakdown"]
[null,null,"Please provide a breakdown of the women who are confirmed screen positive for syphilis below (you will need to work with GUM services to obtain this information):"]
[null,null,null,null,null,null,null,null,null,null,null,null,null,null,"Comments"]
[null,null,null,"Newly diagnosed syphilis infection requiring treatment"]
[null,null,null,"Previously diagnosed syphilis infection requiring treatment"]
[null,null,null,"Previously diagnosed syphilis infection not requiring treatment"]
[null,null,null,"Other treponemal infections"]
[null,null,null,"Other (please specify in comments)"]
[null,null,"Data quality check: Are all confirmed screen positive women accounted for?",null,null,null,null,null,null,null,null,null,{"$f":"IF(SUM(M89:N93)=M78, \"Yes\", \"No\")","v":"Yes"}]
[]
[null,null,"Standard 6: Time to intervention: timely assessment of women with hepatitis B",null,null,null,null,null,null,null,null,null,null,null,null,"Section complete?",null,"N/A"]
[]
[null,null,"Collected via KPI ID2 (timely assessment of women with hepatitis B): no return required"]
[]
[null,null,"Standard 7: Intervention and treatment: Hepatitis B - timely neonatal vaccination and immunoglobulin",null,null,null,null,null,null,null,null,null,null,null,null,"Section complete?",null,{"$f":"IF(OR(ISBLANK(M106), ISBLANK(M107), ISBLANK(M110), ISBLANK(M111)), \"No\", \"Yes\")","v":"No"}]
[null,null,"Data source: Maternity",null,null,null,null,null,null,null,null,null,null,null,"Please account for any of the cohort where the standard has not been met."]
[]
[null,null,"Please note: This standard collects numbers of babies born in this collection period, not women screened"]
[]
[null,null,"Standard 7a.",null,null,null,null,null,null,null,null,null,null,null,"Comments"]
[null,null,"Babies born to hepatitis B positive women (denominator)"]
[null,null,"Babies who received first dose of hepatitis B vaccination ≤ 24 hours of birth (numerator)"]
[]
[null,null,"Standard 7b.",null,null,null,null,null,null,null,null,null,null,null,"Comments"]
[null,null,"Babies born to hepatitis B positive women requiring immunoglobulin (denominator)"]
[null,null,"Babies who received immunoglobulin ≤ 24 hours of birth (numerator)"]
[null,null,null,null,null,null,null,null,null,null,"7a.",null,"7b."]
[null,null,null,null,null,null,null,"Reported performance:\n(auto-completed)",null,null,{"$f":"IF(M106=\"\", \"No data\", M107/M106)","v":"No data"},null,{"$f":"IF(M110=\"\", \"No data\", M111/M110)","v":"No data"}]

{"sheet":"FASP Data Return","index":2,"n_rows":85,"n_cols":18,"rows_kept":85,"cut":false,"hidden":false,"merged":[[84,8,84,10],[84,11,84,12],[84,13,84,14],[80,14,80,17],[81,2,81,11],[81,12,81,13],[81,14,81,17],[83,11,83,12],[83,13,83,14],[77,14,77,17],[78,2,78,11],[78,12,78,13],[78,14,78,17],[79,2,79,11],[79,12,79,13],[79,14,79,17],[74,2,74,11],[74,12,74,13],[74,14,74,17],[75,2,75,11],[75,12,75,13],[75,14,75,17],[73,14,73,17],[61,2,61,11],[61,12,61,13],[61,14,61,17],[63,9,63,11],[63,12,63,13],[65,2,65,14],[68,14,68,17],[69,2,69,11],[69,12,69,13],[69,14,69,17],[71,2,71,17],[58,14,58,17],[59,2,59,11],[59,12,59,13],[59,14,59,17],[60,2,60,11],[60,12,60,13],[60,14,60,17],[56,2,56,14],[35,14,35,17],[36,2,36,14],[38,2,38,17],[40,2,40,14],[42,2,42,17],[44,2,44,14],[46,2,46,17],[48,2,48,14],[50,2,50,17],[52,2,52,14],[54,2,54,17],[34,2,34,17],[22,2,22,6],[22,7,22,11],[25,2,27,6],[25,8,25,11],[26,8,26,11],[27,8,27,11],[28,2,30,6],[28,8,28,11],[29,8,29,11],[30,8,30,11],[32,2,32,14],[17,2,17,14],[20,2,20,6],[20,7,20,11],[20,12,21,17],[21,2,21,6],[21,7,21,11]]}
[]
[]
[]
[]
[]
[]
[]
[]
[]
[null,null,"NHS Fetal Anomaly Screening Programme"]
[null,null,"Annual data collection template"]
[]
[null,null,"1 April 2022 to 31 March 2023"]
[]
[null,null,"Please complete all yellow boxes. If there are no cases that fit into that category, enter a zero."]
[null,null,"Click on underlined headings for more guidance for that data item"]
[null,null,"Mouse over cells with a red arrow in the corner for more detail on that data item"]
[null,null,"Annual data: trust information and sign-off",null,null,null,null,null,null,null,null,null,null,null,null,"Section complete?",null,{"$f":"IF(OR(ISBLANK(H21), ISBLANK(H23), ISBLANK(I26), ISBLANK(I27), ISBLANK(I28), ISBLANK(I29), ISBLANK(I30), ISBLANK(I31), ), \"No\", \"Yes\")","v":"No"}]
[]
[null,null,"Trust information"]
[null,null,"Name of trust (select from drop-down)",null,null,null,null,{"$f":"IF('IDPS Data return'!H21=\"\",\"\",'IDPS Data return'!H21)","v":""},null,null,null,null,"Select your trust on the IDPS return to automatically populate this field"]
[null,null,"Other",null,null,null,null,{"$f":"IF('IDPS Data return'!H22=\"\",\"\",'IDPS Data return'!H22)","v":""}]
[null,null,"Name of laboratory to which samples are sent. If more than one laboratory (e.g for first and second trimester screening) please state."]
[]
[null,null,"Sign-off /completed by"]
[null,null,"Data return completed by:",null,null,null,null,"Name"]
[null,null,null,null,null,null,null,"Job title"]
[null,null,null,null,null,null,null,"Email"]
[null,null,"Sign-off for standards 7 and 8:\n(Head of Midwifery)",null,null,null,null,"Name"]
[null,null,null,null,null,null,null,"Job title"]
[null,null,null,null,null,null,null,"Email"]
[]
[null,null,"FASP-S01: Coverage and identifying population (T21 / T18 / T13 screening)",null,null,null,null,null,null,null,null,null,null,null,null,"Section complete?",null,"N/A"]
[]
[null,null,"Collected via KPI FA3: no return required"]
[]
[null,null,"FASP-S02: Coverage and identifying population (20 week screening scan)",null,null,null,null,null,null,null,null,null,null,null,null,"Section complete?",null,"N/A"]
[]
[null,null,"Collected via KPI FA2: no return required"]
[]
[null,null,"FASP-S03: diagnosis/intervention: test turnaround time quantitative fluorescence-polymerase chain reaction (QF-PCR)",null,null,null,null,null,null,null,null,null,null,null,null,"Section complete?",null,"N/A"]
[]
[null,null,"Collected directly from laboratories: no return required"]
[]
[null,null,"FASP-S04: Test: 20-week screening scan",null,null,null,null,null,null,null,null,null,null,null,null,"Section complete?",null,"N/A"]
[]
[null,null,"Data for this standard is collected via NCARDRS: no return required"]
[]
[null,null,"FASP-S05: Test turnaround time (T21/T18/T13  screening)",null,null,null,null,null,null,null,null,null,null,null,null,"Section complete?",null,"N/A"]
[]
[null,null,"Collected directly from screening laboratories: no return required"]
[]
[null,null,"FASP-S06: test: inadequate samples for T21/T18/T13 screening",null,null,null,null,null,null,null,null,null,null,null,null,"Section complete?",null,"N/A"]
[]
[null,null,"Collected via KPI FA4 (Completion of laboratory request forms): no return required"]
[]
[null,null,"FASP-S07: referral: timeliness to information and support (T21/T18/T13)",null,null,null,null,null,null,null,null,null,null,null,null,"Section complete?",null,{"$f":"IF(OR(ISBLANK(M60), ISBLANK(M61), ISBLANK(M62)), \"No\", \"Yes\")","v":"No"}]
[null,null,"Data source: Maternity"]
[null,null,null,null,null,null,null,null,null,null,null,null,null,null,"Comments"]
[null,null,"Name of software used for data collection (if manual, please state)"]
[null,null,"Number of women for whom a higher chance result (from the combined or quadruple test) is received by the maternity service in the reporting period. (denominator)"]
[null,null,"Number of women with higher chance results attending an appointment in ≤ 3 working days to discuss their results."]
[]
[null,null,null,null,null,null,null,null,null,"Reported performance:\n(auto-completed)",null,null,{"$f":"IF(M61=\"\", \"No data\", M62/M61)","v":"No data"}]
[]
[null,null,"FASP-S08:  referral: timeliness to intervention (20-week screening scan)",null,null,null,null,null,null,null,null,null,null,null,null,"Section complete?",null,{"$f":"IF(OR(ISBLANK(M75), ISBLANK(M76), ISBLANK(M79), ISBLANK(M80)), \"No\", \"Yes\")","v":"No"}]
[null,null,"Data source: Maternity"]
[]
[null,null,"Standard 8",null,null,null,null,null,null,null,null,null,null,null,"Comments"]
[null,null,"Total number of women where an unexpected finding is suspected or confirmed in the baby at the 20-week screening scan."]
[]
[null,null,"The cohort of women included in this standard is the total number of women in the reporting period who had an unexpected finding at the screening scan. Women are then categorised into either (a) or (b) dependent on the local referral pathway."]
[]
[null,null,"Standard 8a: Local referral",null,null,null,null,null,null,null,null,null,null,null,"Comments"]
[null,null,"Denominator: number of women who had a screening scan within the reporting period with an unexpected finding and were referred locally."]
[null,null,"Numerator: number of women referred locally and seen in ≤ 3 working days of the screening scan."]
[]
[null,null,"Standard 8b: Tertiary referral",null,null,null,null,null,null,null,null,null,null,null,"Comments"]
[null,null,"Denominator: number of women who had a screening scan within the reporting period with an unexpected finding and were referred to a tertiary centre. "]
[null,null,"Numerator: number of women referred to a tertiary centre and seen in ≤ 5 working days of the screening scan."]
[]
[null,null,"Data quality check: Do the denominators for 8a and 8b = total number of women with an unexpected finding at the screening scan?",null,null,null,null,null,null,null,null,null,{"$f":"IF(M70=\"\", \"Yes\", IF(M75+M79=M70, \"Yes\", \"No\"))","v":"Yes"}]
[]
[null,null,null,null,null,null,null,null,null,null,null,"8a.",null,"8b."]
[null,null,null,null,null,null,null,null,"Reported performance:\n(auto-completed)",null,null,{"$f":"IF(M75=\"\", \"No data\", M76/M75)","v":"No data"},null,{"$f":"IF(M79=\"\", \"No data\", M80/M79)","v":"No data"}]

{"sheet":"SCT Data return","index":3,"n_rows":70,"n_cols":18,"rows_kept":70,"cut":false,"hidden":false,"merged":[[16,2,16,14],[19,2,19,6],[19,7,19,11],[20,2,20,6],[20,7,20,11],[19,12,20,17],[34,2,34,14],[30,2,30,14],[32,2,32,17],[23,2,25,6],[23,8,23,11],[24,8,24,11],[25,8,25,11],[26,2,28,6],[26,8,26,11],[27,8,27,11],[28,8,28,11],[46,2,46,14],[48,2,48,17],[50,2,50,14],[61,10,61,11],[61,12,61,13],[57,12,57,13],[59,12,59,13],[52,2,52,17],[58,12,58,13],[58,14,58,17],[57,14,57,17],[59,2,59,11],[69,2,69,17],[65,2,65,17],[67,2,67,14],[54,2,54,14],[57,2,57,11],[56,14,56,17],[59,14,59,17],[58,2,58,11],[63,2,63,14],[36,2,36,17],[38,2,38,14],[40,2,40,17],[42,2,42,14],[44,2,44,17]]}
[]
[]
[]
[]
[]
[]
[]
[]
[null,null,"NHS Sickle Cell and Thalassaemia Screening Programme"]
[null,null,"Annual data collection template"]
[]
[null,null,"1 April 2022 to 31 March 2023"]
[]
[null,null,"Please complete all yellow boxes. If there are no cases that fit into that category, enter a zero."]
[null,null,"Click on underlined headings for more guidance for that data item"]
[null,null,"Mouse over cells with a red arrow in the corner for more detail on that data item"]
[null,null,"Annual data: trust information and sign-off",null,null,null,null,null,null,null,null,null,null,null,null,"Section complete?",null,{"$f":"IF(OR(ISBLANK(H20), ISBLANK(#REF!), ISBLANK(I24), ISBLANK(I25), ISBLANK(I26), ISBLANK(I27), ISBLANK(I28), ISBLANK(I29), ISBLANK(#REF!), ISBLANK(#REF!), ISBLANK(#REF!)), \"No\", \"Yes\")","v":"No"}]
[]
[null,null,"Trust information"]
[null,null,"Name of trust (select from drop-down)",null,null,null,null,{"$f":"IF('IDPS Data return'!H21=\"\", \"\", 'IDPS Data return'!H21)","v":""},null,null,null,null,"Select your trust on the IDPS return to automatically populate this field"]
[null,null,"Other",null,null,null,null,{"$f":"IF('IDPS Data return'!H22=\"\", \"\", 'IDPS Data return'!H22)","v":""}]
[]
[null,null,"Sign-off/completed by"]
[null,null,"Data return completed by:",null,null,null,null,"Name"]
[null,null,null,null,null,null,null,"Job title"]
[null,null,null,null,null,null,null,"Email"]
[null,null,"Sign-off for standard 7:\n(Head of Midwifery)",null,null,null,null,"Name"]
[null,null,null,null,null,null,null,"Job title"]
[null,null,null,null,null,null,null,"Email"]
[]
[null,null,"Standard 1: Antenatal coverage",null,null,null,null,null,null,null,null,null,null,null,null,"Section complete?",null,"N/A"]
[]
[null,null,"Collected via KPI ST1 (coverage): no return required"]
[]
[null,null,"Standard 2: Timeliness of antenatal screening test",null,null,null,null,null,null,null,null,null,null,null,null,"Section complete?",null,"N/A"]
[]
[null,null,"Collected via KPI ST2 (timeliness of test): no return required"]
[]
[null,null,"Standard 3: Completion of family origin questionnaire (FOQ)",null,null,null,null,null,null,null,null,null,null,null,null,"Section complete?",null,"N/A"]
[]
[null,null,"Collected via KPI ST3 (completion of FOQ): no return required"]
[]
[null,null,"Standard 4: Antenatal screening test turnaround times",null,null,null,null,null,null,null,null,null,null,null,null,"Section complete?",null,"N/A"]
[]
[null,null,"Collected from antenatal screening laboratories: no return required"]
[]
[null,null,"Standard 5: Timely offer of prenatal diagnosis (PND) to women at risk of having an affected infant",null,null,null,null,null,null,null,null,null,null,null,null,"Section complete?",null,"N/A"]
[]
[null,null,"Collected via KPI ST 4a and 4b (timely offer of PND): no return required"]
[]
[null,null,"Standard 6: Timeliness of prenatal diagnosis (PND)",null,null,null,null,null,null,null,null,null,null,null,null,"Section complete?",null,"N/A"]
[]
[null,null,"Collected from PND laboratories : no return required"]
[]
[null,null,"Standard 7: Timely reporting of prenatal diagnosis (PND) results to parents",null,null,null,null,null,null,null,null,null,null,null,null,"Section complete?",null,{"$f":"IF(OR(ISBLANK(M58), ISBLANK(M59)), \"No\", \"Yes\")","v":"No"}]
[null,null,"Data source: Maternity"]
[null,null,null,null,null,null,null,null,null,null,null,null,null,null,"Comments"]
[null,null,"Number of women who have PND (denominator)"]
[null,null,"Number of women who receive their PND result ≤5 working days of test (numerator)","Newly diagnosed syphilis infection requiring treatment"]
[null,null,"Data quality check: Is the numerator less than or equal to the denominator?",null,null,null,null,null,null,null,null,null,{"$f":"IF(M58=\"\", \"Yes\", IF(M59<=M58, \"Yes\", \"No\"))","v":"Yes"},null,"Please account for any of the cohort where the standard has not been met."]
[]
[null,null,null,null,null,null,null,null,null,null,"Reported performance:\n(auto-completed)",null,{"$f":"IF(M58=\"\", \"No data\", M59/M58)","v":"No data"}]
[]
[null,null,"Standard 8: Timely reporting of newborn screen positive results",null,null,null,null,null,null,null,null,null,null,null,null,"Section complete?",null,"N/A"]
[]
[null,null,"Collected via newborn outcomes system : no return required"]
[]
[null,null,"Standard 9: Timely receipt into haemoglobinopathy centres",null,null,null,null,null,null,null,null,null,null,null,null,"Section complete?",null,"N/A"]
[]
[null,null,"Collected via newborn outcomes system: no return required"]

{"sheet":"Overview of data","index":4,"n_rows":56,"n_cols":8,"rows_kept":56,"cut":false,"hidden":false,"merged":[[55,3,55,7],[46,3,46,7],[54,3,54,7],[47,3,47,7],[48,3,48,7],[49,3,49,7],[52,3,52,7],[50,3,50,7],[51,3,51,7],[43,2,43,7],[44,2,45,2],[44,3,45,3],[44,4,45,4],[44,5,45,5],[44,6,44,7],[8,2,8,8],[13,6,13,7],[15,3,15,7],[13,5,14,5],[13,4,14,4],[13,3,14,3],[13,2,14,2],[24,3,24,7],[12,2,12,7],[29,2,29,7],[30,2,31,2],[30,3,31,3],[30,4,31,4],[30,5,31,5],[30,6,30,7],[16,3,16,7],[17,3,17,7],[32,3,32,7],[36,3,36,7],[37,3,37,7],[35,3,35,7],[33,3,33,7],[34,3,34,7]]}
[]
[]
[]
[]
[]
[]
[]
[]
[null,null,"Data to be reported by the NHS Screening Programmes"]
[]
[null,null,"The figures below will be automatically filled in based on the data provided in this form."]
[]
[null,null,"NHS Infectious Diseases in Pregnancy Screening Programme"]
[null,null,"Standard","Denominator","Numerator","Your reported performance","Thresholds for standard"]
[null,null,null,null,null,null,"Acceptable","Achievable"]
[null,null,"Standard 1","N/A - collected via KPI ID1"]
[null,null,"Standard 2","N/A - collected via KPI ID3"]
[null,null,"Standard 3","N/A - collected via KPI ID4"]
[null,null,"Standard 4a",{"$f":"IF(OR('IDPS Data return'!I58=\"\", 'IDPS Data return'!I59=\"\"), \"No return\", 'IDPS Data return'!I58)","v":"No return"},{"$f":"IF(OR('IDPS Data return'!I58=\"\", 'IDPS Data return'!I59=\"\"), \"No return\", 'IDPS Data return'!I59)","v":"No return"},{"$f":"IF(OR(D19=\"No return\", E19=\"No return\"), \"No return\", E19/D19 )","v":"No return"},0.95,0.97]
[null,null,"Standard 4b",{"$f":"IF(OR('IDPS Data return'!K58=\"\", 'IDPS Data return'!K59=\"\"), \"No return\", 'IDPS Data return'!K58)","v":"No return"},{"$f":"IF(OR('IDPS Data return'!K58=\"\", 'IDPS Data return'!K59=\"\"), \"No return\", 'IDPS Data return'!K59)","v":"No return"},"No return",0.95,0.97]
[null,null,"Standard 4c",{"$f":"IF(OR('IDPS Data return'!M58=\"\", 'IDPS Data return'!M59=\"\"), \"No return\", 'IDPS Data return'!M58)","v":"No return"},{"$f":"IF(OR('IDPS Data return'!M58=\"\", 'IDPS Data return'!M59=\"\"), \"No return\", 'IDPS Data return'!M59)","v":"No return"},"No return",0.95,0.97]
[null,null,"Standard 5a",{"$f":"IF(OR('IDPS Data return'!K70=\"\", 'IDPS Data return'!I81=\"\"), \"No return\", 'IDPS Data return'!K70)","v":"No return"},{"$f":"IF(OR('IDPS Data return'!K70=\"\", 'IDPS Data return'!I81=\"\"), \"No return\", 'IDPS Data return'!I81)","v":"No return"},"No return",0.97,0.99]
[null,null,"Standard 5b",{"$f":"IF(OR('IDPS Data return'!M70=\"\", 'IDPS Data return'!K81=\"\"), \"No return\", 'IDPS Data return'!M70)","v":"No return"},{"$f":"IF(OR('IDPS Data return'!M70=\"\", 'IDPS Data return'!K81=\"\"), \"No return\", 'IDPS Data return'!K81)","v":"No return"},"No return",0.97,0.99]
[null,null,"Standard 5c",{"$f":"IF(OR('IDPS Data return'!M78=\"\", 'IDPS Data return'!M81=\"\"), \"No return\", 'IDPS Data return'!M78)","v":"No return"},{"$f":"IF(OR('IDPS Data return'!M78=\"\", 'IDPS Data return'!M81=\"\"), \"No return\", 'IDPS Data return'!M81)","v":"No return"},"No return",0.97,0.99]
[null,null,"Standard 6","N/A - collected via KPI ID2"]
[null,null,"Standard 7a",{"$f":"IF(OR('IDPS Data return'!M106=\"\", 'IDPS Data return'!M107=\"\"), \"No return\", 'IDPS Data return'!M106)","v":"No return"},{"$f":"IF(OR('IDPS Data return'!M106=\"\", 'IDPS Data return'!M107=\"\"), \"No return\", 'IDPS Data return'!M107)","v":"No return"},"No return",0.97,0.99]
[null,null,"Standard 7b",{"$f":"IF(OR('IDPS Data return'!M110=\"\", 'IDPS Data return'!M111=\"\"), \"No return\", 'IDPS Data return'!M110)","v":"No return"},{"$f":"IF(OR('IDPS Data return'!M110=\"\", 'IDPS Data return'!M111=\"\"), \"No return\", 'IDPS Data return'!M111)","v":"No return"},"No return",0.97,0.99]
[]
[]
[null,null,"NHS Fetal Anomaly Screening Programme"]
[null,null,"Standard","Denominator","Numerator","Your reported performance","Thresholds for standard"]
[null,null,null,null,null,null,"Acceptable","Achievable"]
[null,null,"Standard 1","NA - Collected via KPI FA3",{"$f":" IF(OR(#REF!=\"\",#REF!= \"\"), \"No return\",#REF!)","v":{"$error":"#REF!"}},"No thresholds set"]
[null,null,"Standard 2","N/A - Collected via KPI FA2"]
[null,null,"Standard 3","N/A - Collected from screening laboratories"]
[null,null,"Standard 4","N/A - Collected via The National Congenital Anomaly and Rare Disease Registration Service (NCARDRS)"]
[null,null,"Standard 5","N/A - Collected from screening laboratories"]
[null,null,"Standard 6","N/A - Collected via KPI FA4"]
[null,null,"Standard 7",{"$f":"'FASP Data Return'!M61","v":0},{"$f":"'FASP Data Return'!M62","v":0},{"$f":"'FASP Data Return'!M64","v":"No data"},0.97,0.99]
[null,null,"Standard 8a",{"$f":"'FASP Data Return'!M75","v":0},{"$f":"'FASP Data Return'!M76","v":0},{"$f":"'FASP Data Return'!L85","v":"No data"},0.85,0.97]
[null,null,"Standard 8b",{"$f":"'FASP Data Return'!M79","v":0},{"$f":"'FASP Data Return'!M80","v":0},{"$f":"'FASP Data Return'!N85","v":"No data"},0.85,0.97]
[]
[]
[null,null,"NHS Sickle Cell and Thalassaemia Screening Programme"]
[null,null,"Standard","Denominator","Numerator","Your reported performance","Thresholds for standard"]
[null,null,null,null,null,null,"Acceptable","Achievable"]
[null,null,"Standard 1","N/A - Collected via KPI ST1"]
[null,null,"Standard 2","N/A - Collected via KPI ST2"]
[null,null,"Standard 3","N/A - Collected via KPI ST3"]
[null,null,"Standard 4","N/A - Collected from antenatal screening laboratories"]
[null,null,"Standard 5a","N/A - Collected via KPI ST4a"]
[null,null,"Standard 5b","N/A - Collected via KPI ST4b"]
[null,null,"Standard 6","N/A - Collected from PND laboratories"]
[null,null,"Standard 7",{"$f":"IF(OR('SCT Data return'!M58=\"\", 'SCT Data return'!M59=\"\"), \"No return\", 'SCT Data return'!M58)","v":"No return"},{"$f":"IF(OR('SCT Data return'!M58=\"\", 'SCT Data return'!M59=\"\"), \"No return\", 'SCT Data return'!M59)","v":"No return"},{"$f":"IF(OR(D54=\"No return\", E54=\"No return\"), \"No return\", E54/D54 )","v":"No return"},0.7,0.9]
[null,null,"Standard 8","N/A - Collected via newborn outcomes system"]
[null,null,"Standard 9","N/A - Collected via newborn outcomes system"]

{"sheet":"IDPS Guidance","index":5,"n_rows":36,"n_cols":7,"rows_kept":36,"cut":false,"hidden":false,"merged":[[30,1,30,6]]}
[]
[null,"Standard 4: Test turnaround time (HIV, hepatitis B, and syphilis)"]
[null,"Data item","Data source","Links to standard","Description","Guidance","Definitions"]
[null,"Screening laboratory name","Laboratory",null,"Name of the screening laboratory receiving samples"]
[null,"UKAS customer reference number","Laboratory",null,"UKAS customer reference number for accreditation of screening laboratory to ISO 15189"]
[null,"Assay used\n","Laboratory",null,"Assay used by screening laboratory to test for each infection"]
[null,"Analysers used","Laboratory",null,"Analyser used by screening laboratory to test for each infection","Please provide the name for the analyser used for each infection. If there has been a change in analyser during the reporting period, please provide dates when the analyser was changed."]
[null,"Assay used for confirmation\n","Laboratory",null,"Assay used for confirmatory testing of each infection"]
[null,"Analyser used for confirmation\n","Laboratory",null,"Analyser used for confirmatory testing of each infection"]
[null,"Confirmatory laboratory","Laboratory",null,"Name of laboratory where samples are sent for confirmatory testing","If samples are sent to different laboratories for different infections, please specify this."]
[null,"Number of samples received in the laboratory - HIV, hepatitis B, and syphilis","Laboratory","Standard 4 (Test: Turnaround time)","The total number of antenatal screening samples received in the screening laboratory for each infection during the reporting period","This is the total number of samples where a test for the infection is requested. "]
[null,"Exclusions from denominator (lab turn-around time)","Laboratory","Standard 4 (Test: Turnaround time)","The total number of samples received that are not fit for analysis and a repeat sample is requested"]
[null,"Number of samples received in the laboratory minus exclusions","Laboratory","Standard 4 (Test: Turnaround time)","This is an automatically calculated field. The total number of antenatal screening samples received for each infection in the screening laboratory during the reporting period which are fit for analysis.\n\nThis data item acts as the denominator for standard 4."]
[null,"Confirmed results reported ≤8 days of sample receipt in lab - HIV, hepatitis B, and syphilis","Laboratory","Standard 4 (Test: Turnaround time)","This is the number of samples for  screening for each infection received where a result is available (confirmed screen positive or negative) and reported to maternity services in less than or equal to 8 working days of sample receipt in the laboratory\n\nThis data item acts as the numerator for standard 4","\nCount receipt of sample (day 1) when the specimen is received in the pathology reception\n\nThis is a sub-set of 'number of samples received in the laboratory minus exclusions'"]
[null,"Samples received fit for analysis but results are pending or inconclusive","Laboratory","Standard 4 (Test: Turnaround time)","This is the number of samples that were received which were fit for analysis but results are pending or inconclusive","This is to account for the mitigations described in standard 4. \n\nOnly samples where results are pending or inconclusive at the time of data submission should be included in this data field. "]
[null,"Number of samples for which a result is available (confirmed screen positive or negative result) and it was not reported to maternity services ≤ 8 working days of sample receipt","Laboratory","Standard 4: (Test: Turnaround Time)","This is an automatically calculated field. It is the number of samples for screening for each infection received where a result is available (confirmed screen positive or negative result) and it was not reported to maternity services in less than or equal to 8 working days of sample receipt in the laboratory","This field is to account for samples where a result is available (confirmed screen positive or negative result) but it was not reported in less than or equal to 8 working days of receipt of sample.\n\nThis field is automatically calculated as: \n'Denominator (samples received minus exclusions)' minus\n'Numerator (Number of results reported to maternity services ≤ 8 working days of sample receipt)' minus \n'Pending or inconclusive results'\n\nThis should be 0 or a positive number. A negative number suggests that one or more of the other fields are incorrect.\n\n\n"]
[null,"Standard 5: Time to intervention: Timely assessment for screen positive and known positive women (HIV, hepatitis B, and syphilis)"]
[null,"Data item","Data source","Links to standard","Description","Guidance","Definitions"]
[null,"Confirmed positive women - HIV and hepatitis B","Maternity","Standard 5 (Time to intervention)","This is the total number of pregnant women reported in the reporting period who were reported by the screening laboratory to the screening team as confirmed screen positive for HIV or hepatitis B or were notified to the screening team as known to be HIV or hepatitis B positive"]
[null,"Newly screened positive women - HIV and hepatitis B","Maternity",null,"Provides a breakdown of confirmed screen positive women - HIV and hepatitis B","This is a sub-set of the number of 'confirmed screen positive women'"]
[null,"Previously known positive women, not re-tested - HIV and hepatitis B","Maternity",null,"Provides a breakdown of confirmed screen positive women - HIV and hepatitis B ","This is a sub-set of the number of 'confirmed screen positive women'"]
[null,"Previously known positive, re-tested in this pregnancy - HIV and hepatitis B","Maternity",null,"Provides a breakdown of confirmed screen positive women - HIV and hepatitis B","This is a sub-set of the number of 'confirmed screen positive women'"]
[null,"Other (please specify in comments) - HIV and hepatitis B","Maternity",null,"Provides a breakdown of confirmed screen positive women - HIV and hepatitis B","This is a sub-set of the number of 'confirmed screen positive women'. "]
[null,"Confirmed screen positive women - syphilis","Maternity","Standard 5 (Time to intervention)","This is the total number of pregnant women who were reported by the laboratory to the screening team as confirmed screen positive for syphilis"]
[null,"Screen positive women attended for specialist assessment by ≤ 10 days- HIV, hepatitis B, syphilis","Maternity","Standard 5 (Time to intervention)","This is the number of women who have attended for screening assessment in less than or equal to 10 working days of:\n\n- the screen positive report being received by the screening team from the laboratory\n\nor\n\n- the known positive status being notified to screening team\n\nThis data item acts as the numerator for standard 5.","The screening assessment must be a face-to-face appointment, telephone consultation does not suffice.","Screening assessment: This is a face-to-face appointment with a member of the screening team (for example, screening coordinator/specialist midwife/clinical nurse specialist) to facilitate:\n•reporting of a new positive screening result\n•a comprehensive assessment of women with a known positive status\n"]
[null,"Newly diagnosed syphilis infection requiring treatment","Maternity",null,"Provides a breakdown of confirmed screen positive women - syphilis","This is a sub-set of the number of confirmed screen positive women - syphilis"]
[null,"Previously diagnosed syphilis infection requiring treatment","Maternity",null,"Provides a breakdown of confirmed screen positive women - syphilis","This is a sub-set of the number of confirmed screen positive women - syphilis"]
[null,"Previously diagnosed syphilis infection not requiring treatment","Maternity",null,"Provides a breakdown of confirmed screen positive women - syphilis","This is a sub-set of the number of confirmed screen positive women - syphilis"]
[null,"Other treponemal infections","Maternity",null,"Provides a breakdown of confirmed screen positive women - syphilis","This is a sub-set of the number of confirmed screen positive women - syphilis"]
[null,"Other (please specify in comments) - syphilis","Maternity",null,"Provides a breakdown of confirmed screen positive women - syphilis","This is a sub-set of the number of 'confirmed screen positive women'. "]
[null,"Standard 7: Intervention and treatment: Hepatitis B - timely neonatal vaccination and immunoglobulin"]
[null,"Data item","Data source","Links to standard","Description","Guidance","Definitions"]
[null,"Babies born to hep B positive women","Maternity","Standard 7a (Hepatitis B - timely neonatal vaccination and immune-globulin)","This is the total number of babies born in the reporting period to hepatitis B positive women and women already known to be hepatitis B positive\n\nThis data item acts as a denominator for standard 7a."]
[null,"Babies that received first dose of vaccination ≤ 24 hours of birth","Maternity","Standard 7a (Hepatitis B - timely neonatal vaccination and immune-globulin)","This is the number of babies born in the reporting period to hepatitis B positive women, who have received first dose of vaccination by less than or equal to 24 hours of birth.\n\nThis data item acts as a numerator for standard 7a."]
[null,"Babies born to hep B positive women requiring immunoglobulin","Maternity","Standard 7 (Hepatitis B - timely neonatal vaccination)","This is the total number of babies born in the reporting period to hepatitis B positive women and women already known to be hepatitis B positive that require immunoglobulin.\n\nThis data item acts as a denominator for standard 7b.","Immunoglobulin is required if the mother is:\n\n- is HBsAg positive and HBeAg positive \n\n- is HBsAg positive, HBeAg negative and anti-HBe negative\n\n- is HBsAg positive where e-markers have not been determined\n\n- has acute hepatitis B during pregnancy\n\n- is HBsAg seropositive and known to have an HBV DNA level equal or above 1x106IUs/ml in an antenatal sample\n\nBabies with a birth weight of 1500g or less, born to mothers infected with hepatitis B, should receive HBIG in addition to the vaccine, regardless of the e-antigen status of the mother."]
[null,"Babies that received immune-globulin ≤ 24 hours of birth","Maternity","Standard 7 (Hepatitis B - timely neonatal vaccination)","This is the total number of babies born in the reporting period who have received the required immunoglobulin by less than or equal to 24 hours of birth\n\nThis data item acts as a numerator for standard 7b."]

{"sheet":"FASP Guidance","index":6,"n_rows":12,"n_cols":8,"rows_kept":12,"cut":false,"hidden":false,"merged":[[3,5,4,5]]}
[]
[null,"FASP-S07: referral: timeliness to information and support (T21/T18/T13)"]
[null,"Data item","Data source","Links to standard","Description","Guidance","Exclusions","Definitions"]
[null,"Denominator: number of women for whom a higher chance result (from the combined or quadruple test) is received by the maternity service in the reporting period.","Maternity","FASP-S07: referral: timeliness to information and support (T21/T18/T13)","Number of women for whom a higher chance result (from the combined or quadruple test) is received by the maternity service in the reporting period.","The date the maternity service receives the result is counted as day 1.\n\nThe chance cut-off is set at 1 in 150 at term for the combined and quadruple tests. This means women with a result of ≥ 1 in 150 (between 1 in 2 and 1 in 150) are in the higher chance group. These women must be offered an appointment to discuss their results and the option of prenatal diagnosis. The appointment can be face to face or virtual depending on the woman’s choice.\n\nWe calculate performance by dividing numerator by denominator and multiplying by 100 to give a percentage.",null,"\nOffer is defined as direct contact with the woman – providers should be able to demonstrate that reasonable efforts were made to contact the woman. Where contact was not possible, this should be explained in the mitigations.\n\n\n"]
[null,"Numerator: number of women with higher chance results attending an appointment in ≤ 3 working days to discuss their results.","Maternity","FASP-S07: referral: timeliness to information and support (T21/T18/T13)","The proportion of women with higher chance T21/T18/T13 screening results attending an appointment in ≤ 3 working days to discuss their results."]
[null,"FASP-S08: referral: timeliness to intervention (20-week screening scan)"]
[null,"Data item","Data source","Links to standard","Description","Guidance","Exclusions","Definitions"]
[null,"The total number of women who had a screening scan within the reporting period, where an unexpected finding is suspected or confirmed in the baby at the 20-week screening scan.","Maternity","FASP-S08: referral: timeliness to intervention (20-week screening scan)","The proportion of women where an unexpected finding is suspected or confirmed in the baby at the 20-week screening scan.","This standard is reported in 2 parts: S08a (local referrals) and S08b (tertiary referrals).\nThe denominators for standards 8a (local referral) and 8b (tertiary referral) should equal this number. These women should be included in either 8a or 8b, and not double counted."]
[null,"S08a - local referrals\nDenominator: number of women who had a screening scan within the reporting period with an unexpected finding and were referred locally.","Maternity","FASP- S08a: Local referral","Number of women who had a screening scan within the reporting period with an unexpected finding and were referred locally.\n\nLocal referral is defined as a referral within the same provider organisation (this includes a local fetal medicine service).","The denominator for 8a plus the denominator for 8b should add up to the total number of women in the reporting period who had a suspected/identified anomaly at the screening scan. Women should be included in either 8a or 8b, and not double counted.","Excludes women with a suspected or confirmed fetal anomaly where a referral is required to a tertiary fetal medicine centre for further investigation and care (as clinically appropriate as per local pathway)"]
[null,"S08a - local referrals\nNumerator: number of women referred locally and seen in ≤ 3 working days of the screening scan.","Maternity","FASP- S08a: Local referral","number of women referred locally and seen in ≤ 3 working days of the screening scan.\n","This is a sub-set of the denominator for 8a.\n\nDate of the completed screening scan is counted as day 1.","Excludes women with a suspected or confirmed fetal anomaly where a referral is required to a tertiary fetal medicine centre for further investigation and care (as clinically appropriate as per local pathway)"]
[null,"S08b - tertiary referrals\nDenominator: number of women who had a screening scan within the reporting period with an unexpected finding and were referred to a tertiary centre.","Maternity","FASP-S0 8b: Tertiary referral","Denominator: number of women who had a screening scan within the reporting period with an unexpected finding and were referred to a tertiary centre.\n\nTertiary referral is defined as a referral from one provider organisation to a fetal medicine service in another provider organisation.\n","The denominator for 8a plus the denominator for 8b should add up to the total number of women in the reporting period who had a suspected/identified anomaly at the screening scan. Women should be included in either 8a or 8b, and not double counted.\n\nDate of the completed screening scan is counted as day 1.","Excludes women with a suspected or confirmed fetal anomaly where the referral is to an obstetric ultrasound specialist locally for ongoing investigation and care (as clinically appropriate as per local pathway)"]
[null,"S08b - tertiary referrals\nNumerator: number of women referred to a tertiary centre and seen in ≤ 5 working days of the screening scan.","Maternity","FASP-S0 8b: Tertiary referral","Numerator: number of women referred to a tertiary centre and seen in ≤ 5 working days of the screening scan.\n\nTertiary referral is defined as a referral from one provider organisation to a fetal medicine service in another provider organisation.","This is a sub-set of the denominator for 8b.","Excludes women with a suspected or confirmed fetal anomaly where the referral is to an obstetric ultrasound specialist locally for ongoing investigation and care (as clinically appropriate as per local pathway)"]

{"sheet":"SCT Guidance","index":7,"n_rows":5,"n_cols":8,"rows_kept":5,"cut":false,"hidden":false,"merged":[]}
[]
[null,"Standard 7: Timely reporting of prenatal diagnosis (PND) results to parents"]
[null,"Data item","Data source","Links to standard","Description","Guidance","Exclusions","Definitions"]
[null,"Number of women who have PND (denominator)","Maternity","Standard 7 (Timely reporting of PND results)","This is the number of women who have prenatal diagnostic (PND) testing in the reporting period."]
[null,"Number of women who receive their PND result ≤5 working days of test (numerator)","Maternity","Standard 7 (Timely reporting of PND results)","This is the number of women who have PND testing in the reporting period, who then receive their result in less than or equal to 5 working days of the PND test."]

{"sheet":"Lists","index":8,"n_rows":140,"n_cols":3,"rows_kept":140,"cut":false,"hidden":true,"merged":[]}
["Maternity service","Service code"]
["Bedfordshire Hospitals NHS Foundation Trust (Bedford)","RC9","East of England"]
["Bedfordshire Hospitals NHS Foundation Trust (Luton and Dunstable)","RC9","East of England"]
["Cambridge University Hospitals NHS Foundation Trust","RGT","East of England"]
["East and North Hertfordshire NHS Trust","RWH","East of England"]
["East Suffolk and North Essex NHS Foundation Trust (Colchester)","RDE","East of England"]
["East Suffolk and North Essex NHS Foundation Trust (Ipswich)","RDE","East of England"]
["James Paget University Hospitals NHS Foundation Trust","RGP","East of England"]
["Mid and South Essex NHS Foundation Trust (Basildon)","RAJ","East of England"]
["Mid and South Essex NHS Foundation Trust (Broomfield)","RAJ","East of England"]
["Mid and South Essex NHS Foundation Trust (Southend)","RAJ","East of England"]
["Milton Keynes University Hospital NHS Foundation Trust","RD8","East of England"]
["Norfolk and Norwich University Hospitals NHS Foundation Trust","RM1","East of England"]
["North West Anglia NHS Foundation Trust (Hinchingbrooke)","RGN","East of England"]
["North West Anglia NHS Foundation Trust (Peterborough)","RGN","East of England"]
["The Princess Alexandra Hospital NHS Trust","RQW","East of England"]
["The Queen Elizabeth Hospital King's Lynn NHS Foundation Trust","RCX","East of England"]
["West Hertfordshire Teaching Hospitals NHS Trust","RWG","East of England"]
["West Suffolk NHS Foundation Trust","RGR","East of England"]
["Barking, Havering and Redbridge University Hospitals NHS Trust","RF4","London"]
["Barts Health NHS Trust (Newham)","R1H","London"]
["Barts Health NHS Trust (Royal London)","R1H","London"]
["Barts Health NHS Trust (Whipps Cross)","R1H","London"]
["Chelsea and Westminster Hospital NHS Foundation Trust","RQM","London"]
["Chelsea and Westminster Hospital NHS Foundation Trust (West Middlesex)","RQM","London"]
["Croydon Health Services NHS Trust","RJ6","London"]
["Epsom and St Helier University Hospitals NHS Trust (Epsom)","RVR","London"]
["Epsom and St Helier University Hospitals NHS Trust (St Helier)","RVR","London"]
["Guy's and St Thomas' NHS Foundation Trust","RJ1","London"]
["Homerton Healthcare NHS Foundation Trust","RQX","London"]
["Imperial College Healthcare NHS Trust (QCCH)","RYJ","London"]
["Imperial College Healthcare NHS Trust (St Mary's)","RYJ","London"]
["King's College Hospital NHS Foundation Trust","RJZ","London"]
["King's College Hospital NHS Foundation Trust (PRUH)","RJZ","London"]
["Kingston Hospital NHS Foundation Trust","RAX","London"]
["Lewisham and Greenwich NHS Trust (Lewisham)","RJ2","London"]
["Lewisham and Greenwich NHS Trust (QEH)","RJ2","London"]
["London North West University Healthcare NHS Trust","R1K","London"]
["North Middlesex University Hospital NHS Trust","RAP","London"]
["Royal Free London NHS Foundation Trust","RAL","London"]
["Royal Free London NHS Foundation Trust (Barnet)","RAL","London"]
["St George's University Hospitals NHS Foundation Trust","RJ7","London"]
["The Hillingdon Hospitals NHS Foundation Trust","RAS","London"]
["University College London Hospitals NHS Foundation Trust","RRV","London"]
["Whittington Health NHS Trust","RKE","London"]
["Birmingham Women's and Children's NHS Foundation Trust","RQ3","Midlands"]
["Chesterfield Royal Hospital NHS Foundation Trust","RFS","Midlands"]
["George Eliot Hospital NHS Trust","RLT","Midlands"]
["Kettering General Hospital NHS Foundation Trust","RNQ","Midlands"]
["Northampton General Hospital NHS Trust","RNS","Midlands"]
["Nottingham University Hospitals NHS Trust","RX1","Midlands"]
["Sandwell and West Birmingham Hospitals NHS Trust","RXK","Midlands"]
["Sherwood Forest Hospitals NHS Foundation Trust","RK5","Midlands"]
["South Warwickshire University NHS Foundation Trust","RJC","Midlands"]
["The Dudley Group NHS Foundation Trust","RNA","Midlands"]
["The Royal Wolverhampton NHS Trust","RL4","Midlands"]
["The Shrewsbury and Telford Hospital NHS Trust","RXW","Midlands"]
["United Lincolnshire Hospitals NHS Trust","RWD","Midlands"]
["University Hospitals Birmingham NHS Foundation Trust","RRK","Midlands"]
["University Hospitals Coventry and Warwickshire NHS Trust","RKB","Midlands"]
["University Hospitals of Derby and Burton NHS Foundation Trust (Burton)","RTG","Midlands"]
["University Hospitals of Derby and Burton NHS Foundation Trust (Derby)","RTG","Midlands"]
["University Hospitals of Leicester NHS Trust","RWE","Midlands"]
["University Hospitals of North Midlands NHS Trust","RJE","Midlands"]
["Walsall Healthcare NHS Trust","RBK","Midlands"]
["Worcestershire Acute Hospitals NHS Trust","RWP","Midlands"]
["Wye Valley NHS Trust","RLQ","Midlands"]
["Airedale NHS Foundation Trust","RCF","North East and Yorkshire"]
["Barnsley Hospital NHS Foundation Trust","RFF","North East and Yorkshire"]
["Bradford Teaching Hospitals NHS Foundation Trust","RAE","North East and Yorkshire"]
["Calderdale and Huddersfield NHS Foundation Trust","RWY","North East and Yorkshire"]
["County Durham and Darlington NHS Foundation Trust","RXP","North East and Yorkshire"]
["Doncaster and Bassetlaw Teaching Hospitals NHS Foundation Trust","RP5","North East and Yorkshire"]
["Gateshead Health NHS Foundation Trust","RR7","North East and Yorkshire"]
["Harrogate and District NHS Foundation Trust","RCD","North East and Yorkshire"]
["Hull University Teaching Hospitals NHS Trust","RWA","North East and Yorkshire"]
["Leeds Teaching Hospitals NHS Trust","RR8","North East and Yorkshire"]
["Mid Yorkshire Hospitals NHS Trust","RXF","North East and Yorkshire"]
["North Cumbria Integrated Care NHS Foundation Trust","RNN","North East and Yorkshire"]
["North Tees and Hartlepool NHS Foundation Trust","RVW","North East and Yorkshire"]
["Northern Lincolnshire and Goole NHS Foundation Trust","RJL","North East and Yorkshire"]
["Northumbria Healthcare NHS Foundation Trust","RTF","North East and Yorkshire"]
["Sheffield Teaching Hospitals NHS Foundation Trust","RHQ","North East and Yorkshire"]
["South Tees Hospitals NHS Foundation Trust","RTR","North East and Yorkshire"]
["South Tyneside and Sunderland NHS Foundation Trust","R0B","North East and Yorkshire"]
["The Newcastle Upon Tyne Hospitals NHS Foundation Trust","RTD","North East and Yorkshire"]
["The Rotherham NHS Foundation Trust","RFR","North East and Yorkshire"]
["York and Scarborough Teaching Hospitals NHS Foundation Trust","RCB","North East and Yorkshire"]
["Blackpool Teaching Hospitals NHS Foundation Trust","RXL","North West"]
["Bolton NHS Foundation Trust","RMC","North West"]
["Countess of Chester Hospital NHS Foundation Trust","RJR","North West"]
["East Cheshire NHS Trust","RJN","North West"]
["East Lancashire Hospitals NHS Trust","RXR","North West"]
["Lancashire Teaching Hospitals NHS Foundation Trust","RXN","North West"]
["Liverpool Women's NHS Foundation Trust","REP","North West"]
["Manchester University NHS Foundation Trust","R0A","North West"]
["Mid Cheshire Hospitals NHS Foundation Trust","RBT","North West"]
["Northern Care Alliance NHS Foundation Trust","RM3","North West"]
["Southport and Ormskirk Hospital NHS Trust","RVY","North West"]
["St Helens and Knowsley Teaching Hospitals NHS Trust","RBN","North West"]
["Stockport NHS Foundation Trust","RWJ","North West"]
["Tameside and Glossop Integrated Care NHS Foundation Trust","RMP","North West"]
["University Hospitals of Morecambe Bay NHS Foundation Trust","RTX","North West"]
["Warrington and Halton Teaching Hospitals NHS Foundation Trust","RWW","North West"]
["Wirral University Teaching Hospital NHS Foundation Trust","RBL","North West"]
["Wrightington, Wigan and Leigh NHS Foundation Trust","RRF","North West"]
["Ashford and St Peter's Hospitals NHS Foundation Trust","RTK","South East"]
["Buckinghamshire Healthcare NHS Trust","RXQ","South East"]
["Dartford and Gravesham NHS Trust","RN7","South East"]
["East Kent Hospitals University NHS Foundation Trust","RVV","South East"]
["East Sussex Healthcare NHS Trust","RXC","South East"]
["Frimley Health NHS Foundation Trust (Frimley)","RDU","South East"]
["Frimley Health NHS Foundation Trust (Wexham)","RDU","South East"]
["Hampshire Hospitals NHS Foundation Trust","RN5","South East"]
["Isle of Wight NHS Trust","R1F","South East"]
["Maidstone and Tunbridge Wells NHS Trust","RWF","South East"]
["Medway NHS Foundation Trust","RPA","South East"]
["Oxford University Hospitals NHS Foundation Trust","RTH","South East"]
["Portsmouth Hospitals University NHS Trust","RHU","South East"]
["Royal Berkshire NHS Foundation Trust","RHW","South East"]
["Royal Surrey County Hospital NHS Foundation Trust","RA2","South East"]
["Surrey and Sussex Healthcare NHS Trust","RTP","South East"]
["University Hospital Southampton NHS Foundation Trust","RHM","South East"]
["University Hospitals Sussex NHS Foundation Trust (East)","RYR","South East"]
["University Hospitals Sussex NHS Foundation Trust (West)","RYR","South East"]
["Dorset County Hospital NHS Foundation Trust","RBD","South West"]
["Gloucestershire Hospitals NHS Foundation Trust","RTE","South West"]
["Great Western Hospitals NHS Foundation Trust","RN3","South West"]
["North Bristol NHS Trust","RVJ","South West"]
["Royal Cornwall Hospitals NHS Trust","REF","South West"]
["Royal Devon University Healthcare NHS Foundation Trust (East)","RH8","South West"]
["Royal Devon University Healthcare NHS Foundation Trust (North)","RH8","South West"]
["Royal United Hospitals Bath NHS Foundation Trust","RD1","South West"]
["Salisbury NHS Foundation Trust","RNZ","South West"]
["Somerset NHS Foundation Trust","RH5","South West"]
["Torbay and South Devon NHS Foundation Trust","RA9","South West"]
["University Hospitals Bristol and Weston NHS Foundation Trust","RA7","South West"]
["University Hospitals Dorset NHS Foundation Trust","R0D","South West"]
["University Hospitals Plymouth NHS Trust","RK9","South West"]
["Yeovil District Hospital NHS Foundation Trust","RA4","South West"]

{"sheet":"IDPS Output","index":9,"n_rows":18,"n_cols":46,"rows_kept":18,"cut":false,"hidden":true,"merged":[[9,0,9,30],[15,0,15,11],[4,0,4,27]]}
[]
["IDPS"]
[]
[]
["Standard 4"]
["Trust","Lab Name","UKAS No.","HIV assay","Hep B assay","Syphilis assay","HIV analyser","Hep B analyser","Syphilis analyser","HIV confirmation assay","Hep B confirmation assay","Syphilis confirmation assay","HIV confirmation analyser","Hep B confirmation analyser","Syphilis confirmation analyser","HIV confirmatory lab","Hep B confirmatory lab","Syphilis confirmatory lab","Collection Year","Exclude HIV?","Exclude Hep B?","Exclude syphilis?","Samples rec. (HIV)","Lab excl. HIV","HIV Denominator","Reported HIV (numerator)","HIV mitigations","HIV late","Samples rec. Hep B","Lab excl. Hep B","Hep B denominator","Reported Hep B (numerator)","Hep B mitigations","Hep B late","Samples rec. Syphilis","Lab excl. syphilis","Syphilis denominator","Reported Syphilis (numerator)","Syphilis mitigations","Syphilis late","Samples received comments","Exclusions comments","Denominator comments","Numerator comments","Mitigations comments","Late comments"]
[{"$f":"IF('IDPS Data return'!$H$21=\"\", \"\", 'IDPS Data return'!$H$21)","v":""},{"$f":"IF('IDPS Data return'!$H$45=\"\", \"\", 'IDPS Data return'!$H$45)","v":""},{"$f":"IF('IDPS Data return'!$H$46=\"\", \"\", 'IDPS Data return'!$H$46)","v":""},{"$f":"IF('IDPS Data return'!$H$48=\"\", \"\", 'IDPS Data return'!$H$48)","v":""},{"$f":"IF('IDPS Data return'!$J$48=\"\", \"\", 'IDPS Data return'!$J$48)","v":""},{"$f":"IF('IDPS Data return'!$L$48=\"\", \"\", 'IDPS Data return'!$L$48)","v":""},{"$f":"IF('IDPS Data return'!$H$49=\"\", \"\", 'IDPS Data return'!$H$49)","v":""},{"$f":"IF('IDPS Data return'!$J$49=\"\", \"\", 'IDPS Data return'!$J$49)","v":""},{"$f":"IF('IDPS Data return'!$L$49=\"\", \"\", 'IDPS Data return'!$L$49)","v":""},{"$f":"IF('IDPS Data return'!$H$50=\"\", \"\", 'IDPS Data return'!$H$50)","v":""},{"$f":"IF('IDPS Data return'!$J$50=\"\", \"\", 'IDPS Data return'!$J$50)","v":""},{"$f":"IF('IDPS Data return'!$L$50=\"\", \"\", 'IDPS Data return'!$L$50)","v":""},{"$f":"IF('IDPS Data return'!$H$51=\"\", \"\", 'IDPS Data return'!$H$51)","v":""},{"$f":"IF('IDPS Data return'!$J$51=\"\", \"\", 'IDPS Data return'!$J$51)","v":""},{"$f":"IF('IDPS Data return'!$L$51=\"\", \"\", 'IDPS Data return'!$L$51)","v":""},{"$f":"IF('IDPS Data return'!$H$52=\"\", \"\", 'IDPS Data return'!$H$52)","v":""},{"$f":"IF('IDPS Data return'!$J$52=\"\", \"\", 'IDPS Data return'!$J$52)","v":""},{"$f":"IF('IDPS Data return'!$L$52=\"\", \"\", 'IDPS Data return'!$L$52)","v":""},"2021/22",null,null,null,{"$f":"IF('IDPS Data return'!$I$56=\"\", \"\", 'IDPS Data return'!$I$56)","v":""},{"$f":"IF('IDPS Data return'!$I$57=\"\", \"\", 'IDPS Data return'!$I$57)","v":""},{"$f":"IF('IDPS Data return'!$I$58=\"\", \"\", 'IDPS Data return'!$I$58)","v":""},{"$f":"IF('IDPS Data return'!$I$59=\"\", \"\", 'IDPS Data return'!$I$59)","v":""},{"$f":"IF('IDPS Data return'!$I$60=\"\", \"\", 'IDPS Data return'!$I$60)","v":""},{"$f":"IF('IDPS Data return'!$I$61=\"\", \"\", 'IDPS Data return'!$I$61)","v":""},{"$f":"IF('IDPS Data return'!$K$56=\"\", \"\", 'IDPS Data return'!$K$56)","v":""},{"$f":"IF('IDPS Data return'!$K$57=\"\", \"\", 'IDPS Data return'!$K$57)","v":""},{"$f":"IF('IDPS Data return'!$K$58=\"\", \"\", 'IDPS Data return'!$K$58)","v":""},{"$f":"IF('IDPS Data return'!$K$59=\"\", \"\", 'IDPS Data return'!$K$59)","v":""},{"$f":"IF('IDPS Data return'!$K$60=\"\", \"\", 'IDPS Data return'!$K$60)","v":""},{"$f":"IF('IDPS Data return'!$K$61=\"\", \"\", 'IDPS Data return'!$K$61)","v":""},{"$f":"IF('IDPS Data return'!$M$56=\"\", \"\", 'IDPS Data return'!$M$56)","v":""},{"$f":"IF('IDPS Data return'!$M$57=\"\", \"\", 'IDPS Data return'!$M$57)","v":""},{"$f":"IF('IDPS Data return'!$M$58=\"\", \"\", 'IDPS Data return'!$M$58)","v":""},{"$f":"IF('IDPS Data return'!$M$59=\"\", \"\", 'IDPS Data return'!$M$59)","v":""},{"$f":"IF('IDPS Data return'!$M$60=\"\", \"\", 'IDPS Data return'!$M$60)","v":""},{"$f":"IF('IDPS Data return'!$M$61=\"\", \"\", 'IDPS Data return'!$M$61)","v":""},{"$f":"IF('IDPS Data return'!$O$56=\"\", \"\", 'IDPS Data return'!$O$56)","v":""},{"$f":"IF('IDPS Data return'!$O$57=\"\", \"\", 'IDPS Data return'!$O$57)","v":""},{"$f":"IF('IDPS Data return'!$O$58=\"\", \"\", 'IDPS Data return'!$O$58)","v":""},{"$f":"IF('IDPS Data return'!$O$59=\"\", \"\", 'IDPS Data return'!$O$59)","v":""},{"$f":"IF('IDPS Data return'!$O$60=\"\", \"\", 'IDPS Data return'!$O$60)","v":""},{"$f":"IF('IDPS Data return'!$O$61=\"\", \"\", 'IDPS Data return'!$O$61)","v":"Please indicate here why results were reported greater than 8 working days"}]
[]
[]
["Standard 5"]
["Trust","Collection Year","Exclude HIV breakdown?","Exclude Hep B breakdown?","Exclude syphilis breakdown?","Exclude HIV standard?","Exclude Hep B standard?","Exclude syphilis standard?","Total positive HIV (denominator)","Newly screened HIV","Known not re-tested HIV","Known re-tested HIV","Other HIV","Total positive Hep B (denominator)","Newly screened Hep B","Known not re-tested Hep B","Known re-tested Hep B","Other HepB","HIV/HepB total pos comment","HIV/HepB new pos comment","HIV/HepB not retested comment","HIV/HepB retested comment","HIV/HepB other comment","Total positive syphilis (denominator)","Syphilis total pos comment","Newly diagnosed syphilis","Syphilis newly pos comment","Prev. req. treatment","Syphilis prev pos req treat comment","Syphilis prev pos not req. treat","Syphilis prev pos not req treat comment","Other treponomal infection","Other trep comment","Syphilis Other","Syphilis other comment","Attended HIV (numerator)","Attended Hep B (numerator)","Attended syphilis (numerator)","Numerator comments"]
[{"$f":"IF('IDPS Data return'!$H$21=\"\", \"\", 'IDPS Data return'!$H$21)","v":""},"2021/22",null,null,null,null,null,null,{"$f":"IF('IDPS Data return'!$K$70=\"\", \"\", 'IDPS Data return'!$K$70)","v":""},{"$f":"IF('IDPS Data return'!$K$71=\"\", \"\", 'IDPS Data return'!$K$71)","v":""},{"$f":"IF('IDPS Data return'!$K$72=\"\", \"\", 'IDPS Data return'!$K$72)","v":""},{"$f":"IF('IDPS Data return'!$K$73=\"\", \"\", 'IDPS Data return'!$K$73)","v":""},{"$f":"IF('IDPS Data return'!$K$74=\"\", \"\", 'IDPS Data return'!$K$74)","v":""},{"$f":"IF('IDPS Data return'!$M$70=\"\", \"\", 'IDPS Data return'!$M$70)","v":""},{"$f":"IF('IDPS Data return'!$M$71=\"\", \"\", 'IDPS Data return'!$M$71)","v":""},{"$f":"IF('IDPS Data return'!$M$72=\"\", \"\", 'IDPS Data return'!$M$72)","v":""},{"$f":"IF('IDPS Data return'!$M$73=\"\", \"\", 'IDPS Data return'!$M$73)","v":""},{"$f":"IF('IDPS Data return'!$M$74=\"\", \"\", 'IDPS Data return'!$M$74)","v":""},{"$f":"IF('IDPS Data return'!$O$70=\"\", \"\",'IDPS Data return'!$O$70)","v":""},{"$f":"IF('IDPS Data return'!$O$71=\"\", \"\", 'IDPS Data return'!$O$71)","v":""},{"$f":"IF('IDPS Data return'!$O$72=\"\",\"\", 'IDPS Data return'!$O$72)","v":""},{"$f":"IF('IDPS Data return'!$O$73=\"\", \"\", 'IDPS Data return'!$O$73)","v":""},{"$f":"IF('IDPS Data return'!$O$74=\"\", \"\", 'IDPS Data return'!$O$74)","v":""},{"$f":"IF('IDPS Data return'!$M$78=\"\", \"\", 'IDPS Data return'!$M$78)","v":""},{"$f":"IF('IDPS Data return'!$O$78=\"\", \"\", 'IDPS Data return'!$O$78)","v":""},{"$f":"IF('IDPS Data return'!$M$89=\"\", \"\", 'IDPS Data return'!$M$89)","v":""},{"$f":"IF('IDPS Data return'!$O$89=\"\", \"\", 'IDPS Data return'!$O$89)","v":""},{"$f":"IF('IDPS Data return'!$M$90=\"\", \"\", 'IDPS Data return'!$M$90)","v":""},{"$f":"IF('IDPS Data return'!$O$90=\"\", \"\", 'IDPS Data return'!$O$90)","v":""},{"$f":"IF('IDPS Data return'!$M$91=\"\", \"\", 'IDPS Data return'!$M$91)","v":""},{"$f":"IF('IDPS Data return'!$O$91=\"\", \"\", 'IDPS Data return'!$O$91)","v":""},{"$f":"IF('IDPS Data return'!$M$92=\"\", \"\", 'IDPS Data return'!$M$92)","v":""},{"$f":"IF('IDPS Data return'!$O$92=\"\", \"\", 'IDPS Data return'!$O$92)","v":""},{"$f":"IF('IDPS Data return'!$M$93=\"\", \"\", 'IDPS Data return'!$M$93)","v":""},{"$f":"IF('IDPS Data return'!$O$93=\"\", \"\", 'IDPS Data return'!$O$93)","v":""},{"$f":"IF('IDPS Data return'!$I$81=\"\", \"\", 'IDPS Data return'!$I$81)","v":""},{"$f":"IF('IDPS Data return'!$K$81=\"\", \"\", 'IDPS Data return'!$K$81)","v":""},{"$f":"IF('IDPS Data return'!$M$81=\"\", \"\", 'IDPS Data return'!$M$81)","v":""},{"$f":"IF('IDPS Data return'!$O$81=\"\", \"\", 'IDPS Data return'!$O$81)","v":""}]
[]
[]
[]
["Standard 7"]
["Trust","Collection Year","7a Exclude?","7b Exclude?","Hep B pos (denominator)","Hep B pos comment","Rec. in 24 hours (numerator)","Vacc 24 hours comment","Req. immuno (denominator)","Req immuno comment","Rec. immuno in 24 hours (numerator)","Immuno 24 hours comment"]
[{"$f":"IF('IDPS Data return'!$H$21=\"\", \"\", 'IDPS Data return'!$H$21)","v":""},"2021/22",null,null,{"$f":"IF('IDPS Data return'!$M$106=\"\", \"\", 'IDPS Data return'!$M$106)","v":""},{"$f":"IF('IDPS Data return'!$O$106=\"\", \"\", 'IDPS Data return'!$O$106)","v":""},{"$f":"IF('IDPS Data return'!$M$107=\"\", \"\", 'IDPS Data return'!$M$107)","v":""},{"$f":"IF('IDPS Data return'!$O$107=\"\", \"\", 'IDPS Data return'!$O$107)","v":""},{"$f":"IF('IDPS Data return'!$M$110=\"\", \"\", 'IDPS Data return'!$M$110)","v":""},{"$f":"IF('IDPS Data return'!$O$110=\"\", \"\", 'IDPS Data return'!$O$110)","v":""},{"$f":"IF('IDPS Data return'!$M$111=\"\", \"\", 'IDPS Data return'!$M$111)","v":""},{"$f":"IF('IDPS Data return'!$O$111=\"\", \"\", 'IDPS Data return'!$O$111)","v":""}]

{"sheet":"SCT Output","index":10,"n_rows":6,"n_cols":7,"rows_kept":6,"cut":false,"hidden":true,"merged":[[3,0,3,6]]}
[]
["SCT"]
[]
["Standard 7:"]
["TrustName","Collection Year","Exclude Data","Women had PND (denom)","Denom Comments","Results within 5 days (num)","Numerator Comments"]
[{"$f":"IF('SCT Data return'!H20=\"\", \"\", 'SCT Data return'!H20)","v":""},"2021/22",null,{"$f":"IF('SCT Data return'!M58=\"\", \"\", 'SCT Data return'!M58)","v":""},{"$f":"IF('SCT Data return'!O58=\"\",\"\", 'SCT Data return'!O58)","v":""},{"$f":"IF('SCT Data return'!M59=\"\", \"\", 'SCT Data return'!M59)","v":""},{"$f":"IF('SCT Data return'!O59=\"\", \"\", 'SCT Data return'!O59)","v":""}]

{"sheet":"FASP Output","index":11,"n_rows":8,"n_cols":12,"rows_kept":8,"cut":false,"hidden":true,"merged":[[1,0,1,4],[5,2,5,5],[5,6,5,9]]}
[]
["Standard 7"]
["Trust","Collection Year","Name of software","Comments","Number of higher risk results (denominator)","Comments","Number of women offered appt within 3 working days (numerator)","Comments"]
[{"$f":"'IDPS Data return'!H21:H21","v":0},"2022-23",{"$f":"'FASP Data Return'!M60:M60","v":0},{"$f":"'FASP Data Return'!O60","v":0},{"$f":"'FASP Data Return'!M61","v":0},{"$f":"'FASP Data Return'!O61","v":0},{"$f":"'FASP Data Return'!M62","v":0},{"$f":"'FASP Data Return'!O62","v":0}]
[]
[null,null,"Standard 8a",null,null,null,"Standard 8b"]
["Trust","Collection Year","Total number of women in the reporting period who had a suspected/identified anomaly at the screening scan","Comments","Women with a suspected/confirmed abnormality referred locally (denominator)","Comments","Women with a suspected/confirmed abnormality referred locally, seen within 3 working days (numerator)","Comments","Women with a suspected/confirmed abnormality referred to a tertiary fetal medicine centre (denominator)","Comments","Women with a suspected/confirmed abnormality referred to a tertiary fetal medicine centre, seen within 5 working days (numerator)","Comments"]
[{"$f":"'IDPS Data return'!H21","v":0},"2022-23",{"$f":"'FASP Data Return'!M70","v":0},{"$f":"'FASP Data Return'!O70","v":0},{"$f":"'FASP Data Return'!M75","v":0},{"$f":"'FASP Data Return'!O75","v":0},{"$f":"'FASP Data Return'!M76","v":0},{"$f":"'FASP Data Return'!O76","v":0},{"$f":"'FASP Data Return'!M79","v":0},{"$f":"'FASP Data Return'!O79","v":0},{"$f":"'FASP Data Return'!M80","v":0},{"$f":"'FASP Data Return'!O80","v":0}]

{"sheet":"Contact details","index":12,"n_rows":5,"n_cols":24,"rows_kept":5,"cut":false,"hidden":true,"merged":[[2,2,2,4],[2,5,2,7],[2,8,2,10],[1,2,1,10],[2,21,2,23],[2,18,2,20],[1,18,1,23],[2,12,2,14],[2,15,2,17],[1,11,1,17],[2,11,3,11]]}
["Contact details - IDPS lab details within standard 4 collection"]
[null,null,null,null,null,null,null,null,null,null,null,"FASP",null,null,null,null,null,null,"SCT"]
["Trust info",null,"Data return completed by:",null,null,"Sign-off for standards 2, 3, 5, and 6:\n(Head of Midwifery)",null,null,"Sign-off for standard 4:\n(Laboratory Lead)",null,null,"Name of laboratory to which samples are sent. If more than one laboratory (e.g for first and second trimester screening) please state.","Data return completed by:",null,null,"Sign-off for standards 1, 7, and 8:\n(Head of Midwifery)",null,null,"Data return completed by:",null,null,"Sign-off for standards 2, 3, 5, and 6:\n(Head of Midwifery)"]
["Name of trust (select from drop-down)","Other","Name","Job title","Email","Name","Job title","Email","Name","Job title","Email",null,"Name","Job title","Email","Name","Job title","Email","Name","Job title","Email","Name","Job title","Email"]
[{"$f":"IF('IDPS Data return'!H21=\"\", \"\", 'IDPS Data return'!H21)","v":""},{"$f":"IF('IDPS Data return'!H22=\"\", \"\", 'IDPS Data return'!H22)","v":""},{"$f":"IF('IDPS Data return'!I25=\"\", \"\", 'IDPS Data return'!I25)","v":""},{"$f":"IF('IDPS Data return'!I26=\"\", \"\", 'IDPS Data return'!I26)","v":""},{"$f":"IF('IDPS Data return'!I27=\"\", \"\", 'IDPS Data return'!I27)","v":""},{"$f":"IF('IDPS Data return'!I28=\"\", \"\", 'IDPS Data return'!I28)","v":""},{"$f":"IF('IDPS Data return'!I29=\"\", \"\", 'IDPS Data return'!I29)","v":""},{"$f":"IF('IDPS Data return'!I30=\"\", \"\", 'IDPS Data return'!I30)","v":""},{"$f":"IF('IDPS Data return'!I31=\"\", \"\", 'IDPS Data return'!I31)","v":""},{"$f":"IF('IDPS Data return'!I32=\"\", \"\", 'IDPS Data return'!I32)","v":""},{"$f":"IF('IDPS Data return'!I33=\"\", \"\", 'IDPS Data return'!I33)","v":""},{"$f":"IF(#REF!=\"\", \"\",#REF!)","v":{"$error":"#REF!"}},{"$f":" IF(#REF!=\"\", \"\",#REF!)","v":{"$error":"#REF!"}},{"$f":" IF(#REF!=\"\", \"\",#REF!)","v":{"$error":"#REF!"}},{"$f":" IF(#REF!=\"\", \"\",#REF!)","v":{"$error":"#REF!"}},{"$f":" IF(#REF!=\"\", \"\",#REF!)","v":{"$error":"#REF!"}},{"$f":" IF(#REF!=\"\", \"\",#REF!)","v":{"$error":"#REF!"}},{"$f":" IF(#REF!=\"\", \"\",#REF!)","v":{"$error":"#REF!"}},{"$f":"IF('SCT Data return'!I24=\"\", \"\", 'SCT Data return'!I24)","v":""},{"$f":"IF('SCT Data return'!I25=\"\", \"\", 'SCT Data return'!I25)","v":""},{"$f":"IF('SCT Data return'!I26=\"\", \"\", 'SCT Data return'!I26)","v":""},{"$f":"IF('SCT Data return'!I27=\"\", \"\", 'SCT Data return'!I27)","v":""},{"$f":"IF('SCT Data return'!I28=\"\", \"\", 'SCT Data return'!I28)","v":""},{"$f":"IF('SCT Data return'!I29=\"\", \"\", 'SCT Data return'!I29)","v":""}]